Cogmind - Beta 14 @@@ ROGUE MODE // 2024.10.03 @ 19:22:05 Player: YA-B01 Result: Destroyed by DAS Turret with DAS Cannon Performance ------------- Evolutions (1) 500 Regions Visited (5) 1000 Robots Destroyed (69) 345 Value Destroyed (1416) 1416 Prototype IDs (30) 600 Alien Tech Used (0) 0 Bonus (319) 319 TOTAL SCORE: 4180 Bonus ------- High Alert Combat Kills 19 Aligned with FarCom 300 Cogmind --------- Core Integrity 0/400 Matter 280/300 Energy 83/100 System Corruption 6% Temperature Cool (0) Movement Treading (240) Ox1 Location -9/Exiles Parts ------- > --- POWER (1) -------- (None) > --- PROPULSION (4) --- Light Treads Light Treads > --- UTILITY (2) ------ Large Storage Unit > --- WEAPON (2) ------- Mini Grenade Launcher > --- INVENTORY (15) --- Signal Interpreter Improved Terrain Scanner Seismic Detector Transport Network Coupler ECM Suite Light Armor Plating Improved EM Shotgun Medium Laser Heavy Particle Cannon Autogun Mining Laser Great Maul Longsword +1 Peak State ------------ > --- POWER ------------ Improved Ion Engine > --- PROPULSION ------- Light Treads Light Treads Light Treads Armored Wheel > --- UTILITY ---------- Large Storage Unit Medium Armor Plating > --- WEAPON ----------- Improved EM Shotgun Improved EM Shotgun > --- INVENTORY -------- Signal Interpreter Improved Terrain Scanner Seismic Detector Transport Network Coupler ECM Suite Light Armor Plating Improved EM Shotgun Medium Laser Particle Cannon Heavy Particle Cannon Autogun Mini Grenade Launcher Mining Laser Great Maul Longsword +1 [Rating: 19] Favorites ----------- Power Improved Ion Engine Engine Improved Ion Engine Propulsion Light Treads Treads Light Treads Wheel Armored Wheel Utility Large Storage Unit Device Seismic Detector Storage Large Storage Unit Protection Medium Armor Plating Weapon Improved EM Shotgun Energy Gun Improved EM Shotgun Energy Cannon Light EM Pulse Cannon Ballistic Gun Assault Rifle Launcher Grenade Launcher Special Weapon Mining Laser Impact Weapon Hammer Build | -11 -10 -10 -9 -9 -9 ------- Run | Yrd Mat Min Mat Min Exi Slots Evolved 2 | . . . 2 . . Power . | . . . . . . Propulsion 2 | . . . 2 . . Utility . | . . . . . . Weapon . | . . . . . . Parts Attached 50 | 10 5 1 27 4 3 Power 6 | 2 . 1 2 1 . Engine 6 | 2 . 1 2 1 . Core . | . . . . . . Reactor . | . . . . . . Propulsion 13 | 2 2 . 8 1 . Treads 11 | 2 2 . 6 1 . Leg . | . . . . . . Wheel 2 | . . . 2 . . Hover . | . . . . . . Flight . | . . . . . . Utility 11 | 3 2 . 4 1 1 Device 4 | 2 . . 2 . . Storage 5 | 1 2 . 1 . 1 Processor . | . . . . . . Hackware . | . . . . . . Protection 2 | . . . 1 1 . Artifact . | . . . . . . Weapon 20 | 3 1 . 13 1 2 Energy Gun 7 | 1 1 . 4 1 . Energy Cannon 3 | . . . 2 . 1 Ballistic Gun 2 | 2 . . . . . Ballistic Cannon . | . . . . . . Launcher 5 | . . . 4 . 1 Special Weapon 1 | . . . 1 . . Impact Weapon 2 | . . . 2 . . Slashing Weapon . | . . . . . . Piercing Weapon . | . . . . . . Special Melee Weapon . | . . . . . . Unidentified Prototypes . | . . . . . . Parts Lost 12 | . . . 4 1 7 Power 1 | . . . . . 1 Propulsion 6 | . . . 3 1 2 Utility 1 | . . . . . 1 Weapon 4 | . . . 1 . 3 Highest Loss Streak 7 | . . . 2 1 7 To Critical Strikes . | . . . . . . Average Slot Usage (%) 94 | . 100 100 89 99 98 Engine 11 | . 14 14 11 11 10 Treads 29 | . 28 28 30 32 32 Wheel 4 | . . . 4 11 10 Device 9 | . 14 14 9 2 . Storage 11 | . 14 14 11 11 11 Protection 2 | . . . 1 8 10 Energy Gun 17 | . 14 14 17 22 21 Energy Cannon 1 | . . . 2 . . Ballistic Gun 4 | . 14 14 . . . Peak Build Rating 19 | 7 8 8 17 18 19 Average Rating 11 | 6 7 8 12 17 18 On Entrance 9 | . 7 8 8 16 18 Naked Turns . | . . . . . . Heaviest Build 72 | 14 30 30 72 40 40 Greatest Support 80 | 40 40 40 80 60 60 Greatest Overweight (x) 9 | . . . 2 . 9 Average Overweight (x) . | . . . . . 2 Largest Inventory Capacity 20 | 8 15 15 20 15 15 Average Capacity 13 | 7 10 15 15 15 15 Most Carried 15 | 5 10 12 15 15 15 Average Carried 11 | 2 8 11 12 13 14 Final Capacity 15 | 8 15 15 15 15 15 Final Carried 14 | 5 10 12 13 14 13 Class Distribution -------------------- 96% | Mutant 3% | Scavenger-Mutant Dominant Class ---------------- Mutant | -10/Materials Mutant | -10/Mines Mutant | -9/Materials Mutant | -9/Mines Mutant | -9/Exiles Resources | -11 -10 -10 -9 -9 -9 ----------- Run | Yrd Mat Min Mat Min Exi Matter Collected 949 | 330 162 11 355 55 36 Remotely . | . . . . . . Salvage Created 2228 | 136 528 . 1346 108 110 Parts 159 | 13 33 . 105 4 4 Haulers Intercepted 6 | . 1 . 5 . . Recyclers Shooed 2 | 1 1 . . . . Parts Field Recycled . | . . . . . . Retrieved Matter . | . . . . . . Parts Self-Destructed . | . . . . . . Prevented . | . . . . . . Kills | -11 -10 -10 -9 -9 -9 ------- Run | Yrd Mat Min Mat Min Exi Combat Hostiles Destroyed 49 | . 10 . 31 2 6 Guns 30 | . 10 . 18 2 . Cannons 5 | . . . 4 . 1 AOE 12 | . . . 7 . 5 Classes Destroyed 14 | 2 5 . 5 1 1 Worker 2 | . . . 2 . . Builder 3 | . 2 . 1 . . Tunneler 4 | 4 . . . . . Hauler 6 | . 1 . 5 . . Recycler 2 | 1 1 . . . . Mechanic 1 | . . . 1 . . Operator 2 | . . . 2 . . Watcher 6 | . 2 . 4 . . Swarmer 16 | . 3 . 13 . . Grunt 18 | . 7 . 10 1 . Brawler 1 | . . . . 1 . Duelist 1 | . . . 1 . . Sentry 7 | . . . 7 . . Assembled 6 | . . . . . 6 Best Kill Streak 8 | 4 4 . 8 2 6 Combat Bots Only 6 | . 2 . 4 2 6 Max Kills in Single Turn 5 | 1 1 . 3 1 5 Gunslinging . | . . . . . . Exploded 5 | . . . 3 . 5 Melee . | . . . . . . Uniques/NPCs Destroyed . | . . . . . . Combat | -11 -10 -10 -9 -9 -9 -------- Run | Yrd Mat Min Mat Min Exi Hostile Shots Fired 195 | . 43 . 108 9 35 Missed 48 | . 12 . 25 5 6 Damage Taken 2383 | . 348 . 1089 45 901 Core 463 | . 25 . 155 . 283 Absorbed by Shields . | . . . . . . Regen/Repaired (Parts) 187 | . 49 . 138 . . Core Remaining (%) 95 | 100 . 90 . . . Volleys Fired 153 | 10 45 1 90 4 3 Largest 2 | 2 2 1 2 2 2 Hottest 150 | 60 60 20 150 90 90 Shots Fired 281 | 20 89 1 158 8 5 Gun 244 | 20 89 1 123 8 3 Cannon 24 | . . . 23 . 1 Launcher 9 | . . . 8 . 1 Special 4 | . . . 4 . . Kinetic 58 | 10 45 1 2 . . Thermal 122 | 10 44 . 67 . 1 Explosive 9 | . . . 8 . 1 Electromagnetic 92 | . . . 81 8 3 Robot Hit Streak 22 | 8 15 . 22 7 6 Robot Miss Streak 5 | 1 5 . 4 4 1 Penetration Max . | . . . . . . Secondary Targets . | . . . . . . Shots Hit Robots 195 | 15 56 . 115 7 2 Core Hits 115 | 6 27 . 68 5 9 Critical Kills 1 | . 1 . . . . Critical Parts Destroyed 2 | . 1 . 1 . . Critical Strikes 10 | . 2 . 8 . . Burn 6 | . . . 6 . . Destroy 2 | . 2 . . . . Corrupt 1 | . . . 1 . . Smash 1 | . . . 1 . . Melee Attacks 4 | . . . 4 . . Impact 4 | . . . 4 . . Slashing . | . . . . . . Piercing . | . . . . . . Sneak Attacks . | . . . . . . Combat Hostiles . | . . . . . . Follow-up Attacks . | . . . . . . Damage Inflicted 3694 | 173 701 44 2375 120 281 Guns 2236 | 173 670 . 1257 113 23 Cannons 396 | . . . 375 . 21 Explosions 837 | . . . 600 . 237 Melee 43 | . . . 43 . . Ramming 110 | . 31 44 28 7 . Kinetic 484 | 85 385 . 14 . . Thermal 1216 | 88 285 . 822 . 21 Explosive 651 | . . . 414 . 237 Electromagnetic 1190 | . . . 1054 113 23 Impact 43 | . . . 43 . . Slashing . | . . . . . . Piercing . | . . . . . . Highest Corruption 6 | . . . 1 1 6 Average Corruption 1 | . . . 1 1 1 Corruption Purged . | . . . . . . Corruption Blocked . | . . . . . . Effects 15 | . . . 9 1 5 Message Errors 2 | . . . 1 . 1 Matter Fused 7 | . . . 5 . 2 Heat Flow Errors 2 | . . . 1 1 . Energy Discharges 1 | . . . 1 . . Data Loss (major) 1 | . . . . . 1 Misfires 2 | . . . 1 . 1 Overload Shots . | . . . . . . Overflow Damage 65 | . . . 65 . . Projectiles . | . . . . . . Explosions 42 | . . . 42 . . Melee 23 | . . . 23 . . Knockbacks . | . . . . . . Impact . | . . . . . . Kinetic . | . . . . . . Secondary . | . . . . . . Self-Inflicted Damage 201 | . . . 154 . 47 Shots 5 | . . . 4 . 1 Rammed 26 | . 9 7 8 2 . Targets Rammed 29 | . 11 7 9 2 . Kicked . | . . . . . . Crushed 3 | . 2 . 1 . . Highest Temperature 288 | . 75 . 288 134 33 Average Temperature 64 | . 27 . 72 62 13 Received Heat Transfer 414 | . 141 . 249 24 . Effects 2 | . . . 2 . . Interference 2 | . . . 2 . . Siege Activations . | . . . . . . Robots Corrupted 3 | . . . 3 . . Combat Hostiles 2 | . . . 2 . . Parts Fried 10 | . . . 10 . . Impact Corruptions 2 | . . . 2 . . Robots Melted . | . . . . . . Combat Hostiles . | . . . . . . Parts Melted 6 | . 1 . 5 . . Heat Transferred 3161 | 200 650 . 2274 . 37 Parts Sabotaged . | . . . . . . Parts Stolen . | . . . . . . Parts Stripped . | . . . . . . Power Chain Reactions 5 | . . . 5 . . Alert | -11 -10 -10 -9 -9 -9 ------- Run | Yrd Mat Min Mat Min Exi Peak Influence 494 | 25 218 62 494 232 . Initial 192 | . 16 61 24 192 . Average 198 | 12 100 61 282 230 . Maximum Alert Level 2 | . 1 . 2 1 . Low Security (%) 49 | 100 97 100 18 1 . Level 1 43 | . 2 . 69 98 . Level 2 6 | . . . 11 . . Level 3 . | . . . . . . Level 4 . | . . . . . . Level 5 . | . . . . . . High Security . | . . . . . . Max Security . | . . . . . . Squads Dispatched 5 | . 2 . 3 . . Investigation 4 | . 2 . 2 . . Extermination . | . . . . . . Reinforcement 1 | . . . 1 . . Assault . | . . . . . . Garrison . | . . . . . . Intercept . | . . . . . . Searches Triggered . | . . . . . . Construction Impeded . | . . . . . . Haulers Reinforced . | . . . . . . Active Scanning Responses . | . . . . . . Cargo Convoy Interrupts . | . . . . . . Stealth | -11 -10 -10 -9 -9 -9 --------- Run | Yrd Mat Min Mat Min Exi Distress Signals 2 | . 1 . 1 . . Communications Jammed . | . . . . . . Distress Signals . | . . . . . . Times Spotted 81 | . 24 . 45 4 8 Peak Tracking Total 11 | . 5 . 6 2 11 Tactical Retreats 13 | . 7 . 6 . . Traps | -11 -10 -10 -9 -9 -9 ------- Run | Yrd Mat Min Mat Min Exi Traps Triggered 2 | . . . 2 . . Indirectly . | . . . . . . Trap Hack Attempts . | . . . . . . Triggered . | . . . . . . Disarmed . | . . . . . . Reprogrammed . | . . . . . . Reused . | . . . . . . Traps Extracted . | . . . . . . Installed . | . . . . . . Triggered . | . . . . . . Machines | -11 -10 -10 -9 -9 -9 ---------- Run | Yrd Mat Min Mat Min Exi Machines Disabled 1 | . . . 1 . . Max in Single Turn 1 | . . . 1 . . Machines Repaired . | . . . . . . Machines Dismantled . | . . . . . . Machines Sabotaged . | . . . . . . Overloaded Fab Kills . | . . . . . . Hacking | -11 -10 -10 -9 -9 -9 --------- Run | Yrd Mat Min Mat Min Exi Machines Accessed 22 | . 9 . 11 . 2 Terminals 13 | . 6 . 7 . . Fabricators . | . . . . . . Repair Stations 3 | . 1 . 2 . . Recycling Units 3 | . 2 . 1 . . Scanalyzers 1 | . . . 1 . . Garrison Access . | . . . . . . Total Hacks 83 | . 27 . 32 . 24 Successful 55 | . 13 . 18 . 24 Failed 28 | . 14 . 14 . . Catastrophic 5 | . 2 . 3 . . Database Lockouts . | . . . . . . Manual 21 | . 11 . 9 . 1 Terminals 37 | . 21 . 16 . . Fabricators . | . . . . . . Repair Stations 8 | . 2 . 6 . . Recycling Units 5 | . 4 . 1 . . Scanalyzers 9 | . . . 9 . . Garrison Access . | . . . . . . Terminal Hacks 33 | . 6 . 3 . 24 Record 23 | . . . . . 23 Prototype ID Bank 4 | . 2 . 2 . . Unreport Threat 2 | . 1 . 1 . . Locate Traps 3 | . 3 . . . . Derelict Proto ID Bank 1 | . . . . . 1 Fabricator Hacks . | . . . . . . Repair Station Hacks 7 | . 2 . 5 . . Scan Component 4 | . 1 . 3 . . Repair 3 | . 1 . 2 . . Recycling Unit Hacks 2 | . 1 . 1 . . Retrieve Components 2 | . 1 . 1 . . Scanalyzer 7 | . . . 7 . . Insert Component 4 | . . . 4 . . Analyze 3 | . . . 3 . . Garrison Access Hacks . | . . . . . . Unauthorized Hacks 6 | . 4 . 2 . . Terminals 5 | . 3 . 2 . . Botnet 4 | . 2 . 2 . . Operators 1 | . 1 . . . . Fabricators . | . . . . . . Repair Stations . | . . . . . . Recycling Units 1 | . 1 . . . . Recyclers 1 | . 1 . . . . Scanalyzers . | . . . . . . Garrison Access . | . . . . . . Data Cores Recovered 1 | . . . 1 . . Used . | . . . . . . Hacking Detections 18 | . 8 . 10 . . Full Trace Events 4 | . 2 . 2 . . Feedback Events . | . . . . . . Feedback Blocked . | . . . . . . Robot Schematics Acquired . | . . . . . . Robots Built . | . . . . . . Authchips . | . . . . . . Time . | . . . . . . Total Robot Build Rating . | . . . . . . Part Schematics Acquired 3 | . . . 3 . . Parts Built . | . . . . . . Authchips . | . . . . . . Time . | . . . . . . Total Part Build Rating . | . . . . . . Parts Repaired 3 | . 1 . 2 . . Time 78 | . 26 . 52 . . Parts Recycled . | . . . . . . Recycled Matter . | . . . . . . Retrieved Matter . | . . . . . . Retrieved Components 4 | . 3 . 1 . . Parts Scanalyzed 4 | . . . 4 . . Part Schematics Acquired 3 | . . . 3 . . Parts Damaged . | . . . . . . Bothacking | -11 -10 -10 -9 -9 -9 ------------ Run | Yrd Mat Min Mat Min Exi Used RIF Installer . | . . . . . . Robots Hacked . | . . . . . . Non-combat . | . . . . . . Combat . | . . . . . . Robot Hacks Applied . | . . . . . . Relay Couplers Released . | . . . . . . Fabnet Peak Effective % . | . . . . . . Robots Rewired . | . . . . . . Allies Hacked . | . . . . . . Hacks Repelled . | . . . . . . Allies | -11 -10 -10 -9 -9 -9 -------- Run | Yrd Mat Min Mat Min Exi Total Allies . | . . . . . . Largest Group . | . . . . . . Highest-Rated Group . | . . . . . . Highest-Rated Ally . | . . . . . . Total Orders . | . . . . . . Ally Attacks . | . . . . . . Total Damage . | . . . . . . Kills . | . . . . . . Allies Corrupted . | . . . . . . Allies Melted . | . . . . . . Intel | -11 -10 -10 -9 -9 -9 ------- Run | Yrd Mat Min Mat Min Exi Robot Analysis Total . | . . . . . . Derelict Logs Recovered . | . . . . . . Drone Launches . | . . . . . . Drone Recoveries . | . . . . . . Exploration | -11 -10 -10 -9 -9 -9 ------------- Run | Yrd Mat Min Mat Min Exi Turns Passed 4735 | 206 1139 323 2206 264 597 Spaces Moved 2441 | 101 567 157 1044 152 420 Core 8 | 7 . . . . 1 Treads 1856 | 94 567 157 824 152 62 Legs . | . . . . . . Wheels 577 | . . . 220 . 357 Hover . | . . . . . . Flight . | . . . . . . Fastest Speed 50 | 50 160 160 120 160 120 Average Speed 152 | 152 160 160 151 160 139 Slowest Speed 500 | 160 160 160 240 160 500 Overloaded Moves . | . . . . . . Propulsion Burnouts . | . . . . . . Robots Hopped . | . . . . . . Cave-ins Triggered . | . . . . . . Exploration Rate (%) 56 | 6 89 38 76 42 88 Regions Visited 5 Branch Regions 3 Pre-discovered Areas 1 | . . . . . 1 Known Exits Taken . | . . . . . . Unknown Exits Taken 5 | 1 1 1 1 1 . Scrap Searched 4 | . . 3 . 1 . Spaces Dug . | . . . . . . Terrain Destroyed 81 | . . . 78 . 3 Melee . | . . . . . . Projectile 4 | . . . 4 . . AOE 77 | . . . 74 . 3 Terrain Rammed . | . . . . . . Walls Destroyed . | . . . . . . Machines Disabled . | . . . . . . Actions | -11 -10 -10 -9 -9 -9 --------- Run | Yrd Mat Min Mat Min Exi Total 3141 | 128 710 223 1489 163 428 Wait 407 | 6 61 57 283 . . Move 2436 | 100 566 156 1043 151 420 Hop . | . . . . . . Pick Up 29 | 2 12 1 13 . 1 Fast Attach 17 | 7 . . 8 2 . Attach 9 | . 1 . 6 . 2 Detach 6 | . . . 5 1 . Swap 24 | 3 4 1 13 2 1 Drop 25 | . 10 . 13 1 1 Fire 153 | 10 45 1 90 4 3 Melee 4 | . . . 4 . . Ram . | . . . . . . Kick . | . . . . . . Crush 29 | . 11 7 9 2 . Escape Stasis . | . . . . . . Rewire 2 | . . . 2 . . Trap . | . . . . . . Miscellaneous . | . . . . . . Route ------- -11/Scrapyard -10/Materials (discovered 4 exits: *Mat x2 / [*Min] / [*Sub]) -10/Mines -9/Materials (discovered 4 exits: [*Mat x2] / [*Min x2]) -9/Mines (discovered 2 exits: *Exi / [*Zio]) -9/Exiles History --------- Turn | Location | Event 19 | -11/Scrapyard | Discovered new exit (range 16) 207 | -11/Scrapyard | Entered Materials 303 | -10/Materials | Build established: Mutant 427 | -10/Materials | Repaired Med. Laser 707 | -10/Materials | Derelicts attacked the area 835 | -10/Materials | Discovered new exit (range 4) 1084 | -10/Materials | Discovered new exit (range 15) 1271 | -10/Materials | Discovered new exit (range 6) 1318 | -10/Materials | Discovered new exit (range 5) 1346 | -10/Materials | Entered Mines 1601 | -10/Mines | Discovered new exit (range 14) 1606 | -10/Mines | Assembled infested the area 1669 | -10/Mines | Entered Materials 1669 | -9/Materials | Evolved 2 slots: Propulsion x2 2314 | -9/Materials | Discovered new exit (range 4) 2427 | -9/Materials | Repaired Seismic Detector 2866 | -9/Materials | Repaired Lgt. Treads 3002 | -9/Materials | Discovered new exit (range 12) 3667 | -9/Materials | Discovered new exit (range 15) 3833 | -9/Materials | Discovered new exit (range 15) 3875 | -9/Materials | Entered Mines 3996 | -9/Mines | A Derelict revealed a hidden shortcut to a safe place 4022 | -9/Mines | Deemed a non-threat by the Exiles lab entrance 4024 | -9/Mines | Discovered new exit (range 5) 4139 | -9/Mines | Entered Exiles 4178 | -9/Exiles | Met 8R-AWN 4205 | -9/Exiles | Met EX-HEX 4251 | -9/Exiles | Met EX-BIN 4269 | -9/Exiles | Aligned with FarCom system 4270 | -9/Exiles | Given EX-Vault access code 4338 | -9/Exiles | Opened EX-Vault 4348 | -9/Exiles | Found Longsword +1 4378 | -9/Exiles | Warned to stay clear of 0b10 Research branches 4413 | -9/Exiles | Met EX-DEC 4427 | -9/Exiles | Learned location of Zion (-7) 4532 | -9/Exiles | Visited The Gauntlet 4715 | -9/Exiles | Attacked by the Exiles 4727 | -9/Exiles | Core integrity fell below 50% 4735 | -9/Exiles | Core integrity fell below 20% 4736 | -9/Exiles | Destroyed by DAS Turret with DAS Cannon Last Messages --------------- 04718_ Imp. EM Shotgun destroyed. 04720_ Lgt. Treads destroyed. 04720_ Arm. Wheel destroyed. 04720_ Critical hit (Blast). 04722_ Med. Armor Plating destroyed. 04724_ EX-BIN: "I just want to science!" 04725_ Imp. EM Shotgun destroyed. 04727_ Acquired 3 matter. 04727_ Machine disabled. 04729_ Acquired 6 matter. 04732_ as-24863 destroyed. 04733_ System corrupted: Substantial component data lost. 04734_ Particle Cannon destroyed. 04734_ System corrupted by crushing effect (+1). 04736_ as-98793 destroyed. 04736_ as-70991 destroyed. 04736_ as-99776 destroyed. 04736_ as-82809 destroyed. 04736_ as-72307 destroyed. Map ----- +----------------------------------------------------+ | ??????????????????????#""" #???## ###"" """"#? | | ######??????????????????"" #???#" """"#? | | !!! "#???????????????????###???#" """#? | | "#?????????????????????????#" """#? | | "#?????????????????????????#" """#? | | ""#?????????????#???????????#" """#? | | ""#????????????? """????????#" """## | | ""?????????????? """#???????## """"" | | #??????????????" #????????# """## | | #??????????????" #????????#" "X" """"" | | ##?????????????" "#????????#" """ #? | | "#????????????? ""?????????#" """""""""#? | | ###???????????" "?????????##" ###########? | | ##??????????# #????????##"" #??????????? | | "" ######???### ###?######"" #??????????? | | #" """#####X# #"###""""""" ##?????????? | | #" """""" " "" ##???###### | | #"# "" """ " #####""""" | | #### " " " """ | | ???### "" | | ?????### " | | ???????## | | ????????## | | ?????????##" % | | ??????????#""" """""" | | ?????????##" % @ ######""" | | ?????????#"" %% "##????#####""" | | ????????##""" % ##?????????##""" | | ????????#""" % ???????????#"""" | | ????????#""" a " ##??????????#"" | | ????????#"" ########???###"""" | | ????????#""" ## *%####""" | | ????????#"" t !=="""" | | ????????##"" % | | ?????????#"""" | | ?????????## " | | ??????????#" " "" "" | | ??????????#"""" c ""## ##""" " " ""# | | ??????????#"" ""#### #?####""" """# | | ??????????#" """"##??# #????###""""#? | | ??????????#""" """#??## ####???####??? | | ??????????## ""##??#! "!#?????????? | | ???????????#"" """##???#" !#?????????? | | ???????????##""" ##????#" "#?????????? | | ????????????##"""" ##?????#!!""!"#?????????? | | ?????????????### #??????########?????????? | | ???????????????##### ##???????????????????????? | | ???????????????????## #????????????????????????? | | ????????????????????# #????????????????????????? | | ????????????????????# #????????????????????????? | +----------------------------------------------------+ Best States ------------- Heat Dissipation 28 Energy Generation 12 Energy Capacity 265 Matter Stores 300 Matter Capacity 300 Sight Range 16 Terrain Scan Density 10 Armor Coverage 225 Evasion (%) 40 Recoil Reduction 4 Item Schematics ----------------- Arm. Wheel | -9/Materials | Scanalyzed ECM Suite | -9/Materials | Scanalyzed Imp. EM Shotgun | -9/Materials | Scanalyzed Robot Schematics ------------------ None Fabricated ------------ Nothing Alien Tech Used ----------------- None Achievements -------------- None Challenges ------------ None Game ------ Seed MobileDeuteriumAirjet Manual? 0 Play Time 00:35:09 Cumulative 129.1 hours Start 2024.10.03 @ 17:22:24 End 2024.10.03 @ 19:22:05 Sessions 3 Manual Loads 0 Difficulty Rogue Special Mode None Game No. 90 Rogue 87 Adventurer 3 Explorer 0 Win Type - Total 0 Types 0/0/0/0/0/0/0/0/0 Lore% 49 Gallery% 54 Achievement% 44 Wizard Run 0 Options --------- Layout 1 ASCII 0 Keyboard 1 Movement Vi Keybinds 0 Fullscreen 1 Font 28/SmallcapsGlow Map View 50x43 Zoom Use 0% Tactical HUD 1 Map Filters NONE Filters NONE Steam 1 RUN: f8ce5891-12d3-414c-b7f5-048df8849526